Workbook

Sheet يوميه تسويات أكتوبر
D2: برنامج المحـــــــــــــاسب
E4: قيود التسويات عن شهـــــــــــر | H4: 2019-10-31
B6: رقم القيد | C6: التاريخ | D6: رقـــــم الحساب | E6: إسم الحســـــــــــاب | F6: مدين | G6: دائن | H6: بيــــــــان | I6: ملاحظـــــــــــات
B7: No | C7: Date | D7: Codes | E7: Account | F7: Debit. | G7: Credit. | H7: Explanation | I7: Notes
B8: 1 | C8: 2019-10-31 | D8: 1124 | E8: نجف وأبليكات | F8: 2730 | G8: 0 | H8: قيمة شراء نجف وأبليكات كتان | I8: 0
B9: 1 | C9: 2019-10-31 | D9: 1125 | E9: أنتريهات | F9: 4700 | G9: 0 | H9: قيمة طقم أنتريه للشركه | I9: 0
A10: 1 | B10: 1 | C10: 2019-10-31 | D10: 32713 | E10: مصاريف رسوم إداريه | F10: 2500 | G10: 0 | H10: قيمة عهدة الأستاذ خالد المحامي لعمل أوراق الشركه | I10: 0
A11: 2 | B11: 1 | C11: 2019-10-31 | D11: 3241 | E11: مصاريف إيجار | F11: 5000 | G11: 0 | H11: قيمة عهدة السيده نانسي بهيج جزء من إيجار مقر الشركه لحين التسويه بالمستندات | I11: 0
A12: 3 | B12: 1 | C12: 2019-10-31 | D12: 32711 | E12: مصاريف مكافآت لغير العاملين عن خدمات مؤداه | F12: 2000 | G12: 0 | H12: مصاريف السمسره الخاصه بمقر الشركه للسمسار + سامح من المبنى | I12: 0
A13: 4 | B13: 1 | C13: 2019-10-31 | D13: 3128 | E13: مصاريف كمبيوتر وشبكات | F13: 682.48 | G13: 0 | H13: باقة إنترنت سوبرwe space 600 جيجا 491.48 + شحن باقة الإنترنت 118 | I13: 0
A14: 5 | B14: 1 | C14: 2019-10-31 | D14: 3232 | E14: مصاريف كهرباء عموميه | F14: 212 | G14: 0 | H14: قيمة مصاريف الكهرباء لشهور 8+9+10 تم إحتساب 8+9 لحين سدادها من صاحب الشقه | I14: 0
A15: 6 | B15: 1 | C15: 2019-10-31 | D15: 32705 | E15: مصاريف صيانه عموميه | F15: 1442.5 | G15: 0 | H15: قيمة3لمبات أليوس كاندل142.5 650مصنعيه تركيبات كهرباء في مقر الشركه+400 صيانة العماره | I15: 0
A16: 7 | B16: 1 | C16: 2019-10-31 | D16: 32706 | E16: إكراميات عموميه | F16: 358.52 | G16: 0 | H16: 208.52إكراميه موظفي السنترال +100ثم 50 موظفي الأمن | I16: 0
A17: 8 | B17: 1 | C17: 2019-10-31 | D17: 3251 | E17: مصاريف بوفيه | F17: 442.25 | G17: 0 | H17: 99.25شراء مستلزمات المطبخ+50شراء مستلزمات للبوفيه+63مستلزمات بوفيه+160+20 | I17: 0
A18: 9 | B18: 1 | C18: 2019-10-31 | D18: 3128 | E18: مصاريف كمبيوتر وشبكات | F18: 1000 | G18: 0 | H18: 1000عمل نتورك شبكه الشركه | I18: 0
A19: 10 | B19: 1 | C19: 2019-10-31 | D19: 32709 | E19: مصاريف نظافه | F19: 1204.5 | G19: 0 | H19: 199.5قيمة مستلزمات نظافه للشركه+350مصاريف تنظيف الشركه+200غسيل سجاد الشركه+150قيمه مساحه باركيه | I19: 0
A20: 11 | B20: 1 | C20: 2019-10-31 | D20: 32703 | E20: مصاريف مكتب أخرى عموميه | F20: 4343 | G20: 0 | H20: مصاريف مكتب موزعه في خزينة الشركه | I20: 0
A21: 12 | B21: 1 | C21: 2019-10-31 | D21: 3252 | E21: مصاريف ترفيه | F21: 1000 | G21: 0 | H21: مكافأة كومبتيشن الشركه لساره يحيى | I21: Badr
A22: 13 | B22: 1 | C22: 2019-10-31 | D22: 3261 | E22: مصاريف نقل مستلزمات الشركه | F22: 300 | G22: 0 | H22: قيمة مشال الإنتريه | I22: 0
A23: 14 | B23: 1 | C23: 2019-10-31 | D23: 3262 | E23: مصاريف إنتقالات موظفين عموميه | F23: 25 | G23: 0 | H23: إنتقالات مصطفى الساعي لشراء سماعات | I23: 0
A24: 15 | B24: 1 | C24: 2019-10-31 | D24: 1331 | E24: سلــــــف موظفين | F24: 1100 | G24: 0 | H24: سلف من مرتب أكتوبر 600 ساره سمير زياده + 500 دعاء عيد عبدالرحمن | I24: 0
A25: 16 | B25: 1 | C25: 2019-10-31 | D25: 1126 | E25: ستائـــــــــــر | F25: 2800 | G25: 0 | H25: قيمة ستائر وتابلوهات باللوجو | I25: 0
A26: 17 | B26: 1 | C26: 2019-10-31 | D26: 1211 | E26: خزينة الشركه - جنيه مصري | F26: 0 | G26: 31840.25 | H26: قيمة مصاريف الخزينه عن شهر أكتوبر | I26: 0
E27: الإجمـــــــــــــــــــالي | F27: 31840.25 | G27: 31840.25 | H27: فقط واحد وثلاثون ألف وثمانمائة وأربعون جنيهاً وخمسة وعشرون قرشاً
B28: 2 | C28: 2019-10-31 | D28: 1353 | E28: شركات شقيقه - شركة عميلي للسياحه | F28: 124378.8 | G28: 0 | H28: قيمة 7773.675$ | I28: قيمة مسحوبات على بنك مصر365
A29: 33 | B29: 2 | C29: 2019-10-31 | D29: 1353 | E29: شركات شقيقه - شركة عميلي للسياحه | F29: 1593.75 | G29: 0 | H29: قيمة 375 ريال سعودي | I29: شركة ثعلوب للسياحه والسفر
A30: 34 | B30: 2 | C30: 2019-10-31 | D30: 1353 | E30: شركات شقيقه - شركة عميلي للسياحه | F30: 39121.25 | G30: 0 | H30: قيمة 9205 ريال سعودي | I30: شركة العطار للسياحه والسفر
B31: 2 | C31: 2019-10-31 | D31: 1322 | E31: عهــــد إداره | F31: 9440 | G31: 0 | H31: قيمة 590 دولار أمريكي | I31: عهدة نانسي بهيج
A32: 35 | B32: 2 | C32: 2019-10-31 | D32: 1321 | E32: عهـد موظفين | F32: 2672 | G32: 0 | H32: قيمة 167 دولار أمريكي | I32: عهدة أحمد الحسيني
A33: 36 | B33: 2 | C33: 2019-10-31 | D33: 1321 | E33: عهـد موظفين | F33: 6800 | G33: 0 | H33: قيمة 425 دولار أمريكي | I33: عهدة ريهام
A34: 37 | B34: 2 | C34: 2019-10-31 | D34: 4111 | E34: إيرادات كروت يلا سفـــــر للشركه | F34: 0 | G34: 168245.8 | H34: 0 | I34: 0
B35: 2 | C35: 2019-10-31 | D35: 1311 | E35: عملاء كارت يلا سفــــــــــــــــــــر | F35: 0 | G35: 4800 | H35: قيمة 300دولار أمريكي | I35: Mohamed Shawkat Elbasry
A36: 38 | B36: 2 | C36: 2019-10-31 | D36: 1311 | E36: عملاء كارت يلا سفــــــــــــــــــــر | F36: 0 | G36: 400 | H36: قيمة 25دولار أمريكي | I36: Heba Beamer
A37: 39 | B37: 2 | C37: 2019-10-31 | D37: 1311 | E37: عملاء كارت يلا سفــــــــــــــــــــر | F37: 0 | G37: 7520 | H37: قيمة 470دولار أمريكي | I37: Taghred Elsaman
B38: 2 | C38: 2019-10-31 | D38: 1311 | E38: عملاء كارت يلا سفــــــــــــــــــــر | F38: 0 | G38: 3040 | H38: قيمة 190 دولار أمريكي | I38: Saed Sangoura
A39: 48 | E39: الإجمـــــــــــــــــــالي | F39: 184005.8 | G39: 184005.8 | H39: فقط مائة وأربعة وثمانون ألف وخمسة جنيهاً وثمانون قرشاً
A40: 58 | B40: 3 | C40: 2019-10-14 | D40: 1211 | E40: خزينة الشركه - جنيه مصري | F40: 7400 | G40: 0 | H40: إيراد حجزالعميله مدام نشوى في فندق الحياه ريجنسي | I40: 0
A41: 59 | B41: 3 | C41: 2019-10-14 | D41: 1311 | E41: عملاء كارت يلا سفــــــــــــــــــــر | F41: 0 | G41: 7400 | H41: إيراد حجزالعميله مدام نشوى في فندق الحياه ريجنسي | I41: 0
A42: 74 | E42: الإجمـــــــــــــــــــالي | F42: 7400 | G42: 7400 | H42: فقط سبعة آلاف وأربعمائة جنيهاً
B43: 4 | C43: 2019-10-14 | D43: 1311 | E43: عملاء كارت يلا سفــــــــــــــــــــر | F43: 7400 | G43: 0 | H43: إيراد حجزالعميله مدام نشوى في فندق الحياه ريجنسي | I43: 0
A44: 83 | B44: 4 | C44: 2019-10-14 | D44: 4211 | E44: إيرادات حجز فنادق عملاء مدفوعه | F44: 0 | G44: 7400 | H44: إيراد حجزالعميله مدام نشوى في فندق الحياه ريجنسي | I44: 0
A45: 98 | E45: الإجمـــــــــــــــــــالي | F45: 7400 | G45: 7400 | H45: فقط سبعة آلاف وأربعمائة جنيهاً
B46: 5 | C46: 2019-10-14 | D46: 3131 | E46: مصاريف حجز فنادق عملاء مدفوعه | F46: 6850 | G46: 0 | H46: قيمة مصروفات حجز العميله مدام نشوى في فندق الحياه ريجنسي | I46: 0
A47: 110 | B47: 5 | C47: 2019-10-14 | D47: 1211 | E47: خزينة الشركه - جنيه مصري | F47: 0 | G47: 6850 | H47: قيمة مصروفات حجز العميله مدام نشوى في فندق الحياه ريجنسي | I47: 0
E48: الإجمـــــــــــــــــــالي | F48: 6850 | G48: 6850 | H48: فقط ستة آلاف وثمانمائة وخمسون جنيهاً
B49: 6 | C49: 2019-10-14 | D49: 1353 | E49: شركات شقيقه - شركة عميلي للسياحه | F49: 3213.6 | G49: 0 | H49: قيمة سداد العميل حسين هندي لإيراد حجزه في فندق الحياه ريجنسي 206$ | I49: قيمة مسحوبات على بنك مصر365
B50: 6 | C50: 2019-10-14 | D50: 1211 | E50: خزينة الشركه - جنيه مصري | F50: 1600 | G50: 0 | H50: قيمة سداد العميل حسين هندي لإيراد حجزه في فندق الحياه ريجنسي 100$ | I50: 0
B51: 6 | C51: 2019-10-14 | D51: 1311 | E51: عملاء كارت يلا سفــــــــــــــــــــر | F51: 0 | G51: 4813.6 | H51: قيمة إيراد حجز العميل حسين هندي في فندق الحياه ريجنسي 306$ | I51: 0
E52: الإجمـــــــــــــــــــالي | F52: 4813.6 | G52: 4813.6 | H52: فقط أربعة آلاف وثمانمائة وثلاثة عشر جنيهاً وستون قرشاً
B53: 7 | C53: 2019-10-14 | D53: 1311 | E53: عملاء كارت يلا سفــــــــــــــــــــر | F53: 4813.6 | G53: 0 | H53: قيمة إيراد حجز العميل حسين هندي في فندق الحياه ريجنسي 306$ | I53: 0
B54: 7 | C54: 2019-10-14 | D54: 4211 | E54: إيرادات حجز فنادق عملاء مدفوعه | F54: 0 | G54: 4813.6 | H54: قيمة إيراد حجز العميل حسين هندي في فندق الحياه ريجنسي 306$ | I54: 0
E55: الإجمـــــــــــــــــــالي | F55: 4813.6 | G55: 4813.6 | H55: فقط أربعة آلاف وثمانمائة وثلاثة عشر جنيهاً وستون قرشاً
B56: 8 | C56: 2019-10-14 | D56: 3131 | E56: مصاريف حجز فنادق عملاء مدفوعه | F56: 4800 | G56: 0 | H56: قيمة مصروفات حجز العميل حسين هندي في فندق الحياه ريجنسي | I56: 0
B57: 8 | C57: 2019-10-14 | D57: 1353 | E57: شركات شقيقه - شركة عميلي للسياحه | F57: 0 | G57: 4800 | H57: قيمة مصروفات حجز العميل حسين هندي في فندق الحياه ريجنسي | I57: 0
E58: الإجمـــــــــــــــــــالي | F58: 4800 | G58: 4800 | H58: فقط أربعة آلاف وثمانمائة جنيهاً
B59: 9 | C59: 2019-10-19 | D59: 1353 | E59: شركات شقيقه - شركة عميلي للسياحه | F59: 670.8 | G59: 0 | H59: قيمة سداد العميل سلطان الحكمي لإيراد حجزه في لاونج هوتيل سويت 43$ | I59: قيمة مسحوبات على بنك مصر 365
B60: 9 | C60: 2019-10-19 | D60: 1311 | E60: عملاء كارت يلا سفــــــــــــــــــــر | F60: 0 | G60: 670.8 | H60: قيمة سداد العميل سلطان الحكمي لإيراد حجزه في لاونج هوتيل سويت 43$ | I60: 0
E61: الإجمـــــــــــــــــــالي | F61: 670.8 | G61: 670.8 | H61: فقط ستمائة وسبعون جنيهاً وثمانون قرشاً
B62: 10 | C62: 2019-10-19 | D62: 1311 | E62: عملاء كارت يلا سفــــــــــــــــــــر | F62: 670.8 | G62: 0 | H62: قيمة إيراد حجز العميل سلطان الحكمي في لاونج هوتيل سويت43$ | I62: 0
B63: 10 | C63: 2019-10-19 | D63: 4211 | E63: إيرادات حجز فنادق عملاء مدفوعه | F63: 0 | G63: 670.8 | H63: قيمة إيراد حجز العميل سلطان الحكمي في لاونج هوتيل سويت43$ | I63: 0
E64: الإجمـــــــــــــــــــالي | F64: 670.8 | G64: 670.8 | H64: فقط ستمائة وسبعون جنيهاً وثمانون قرشاً
B65: 11 | C65: 2019-10-19 | D65: 3131 | E65: مصاريف حجز فنادق عملاء مدفوعه | F65: 608 | G65: 0 | H65: قيمة مصروف حجز العميل حسين هندي | I65: 38$
B66: 11 | C66: 2019-10-19 | D66: 1353 | E66: شركات شقيقه - شركة عميلي للسياحه | F66: 0 | G66: 608 | H66: سداد مصروف حجز العميل حسين هندي | I66: 38$
E67: الإجمـــــــــــــــــــالي | F67: 608 | G67: 608 | H67: فقط ستمائة وثمانية جنيهاً
B68: 12 | C68: 2019-10-19 | D68: 1353 | E68: شركات شقيقه - شركة عميلي للسياحه | F68: 204 | G68: 0 | H68: قيمة 48 ريال بروفت العميله نسرين اليماني | I68: 0
B69: 12 | C69: 2019-10-19 | D69: 1311 | E69: عملاء كارت يلا سفــــــــــــــــــــر | F69: 0 | G69: 204 | H69: قيمة 48 ريال بروفت العميله نسرين اليماني | I69: العميله نسرين اليماني
B70: 12 | C70: 2019-10-19 | D70: 1311 | E70: عملاء كارت يلا سفــــــــــــــــــــر | F70: 204 | G70: 0 | H70: قيمة 48 ريال بروفت العميله نسرين اليماني | I70: العميله نسرين اليماني
B71: 12 | C71: 2019-10-19 | D71: 4212 | E71: إيرادات حجز طيران عملاء مدفوعه | F71: 0 | G71: 204 | H71: قيمة 48 ريال بروفت العميله نسرين اليماني | I71: 0
E72: الإجمـــــــــــــــــــالي | F72: 408 | G72: 408 | H72: فقط أربعمائة وثمانية جنيهاً
B73: 13 | C73: 2019-10-15 | D73: 1353 | E73: شركات شقيقه - شركة عميلي للسياحه | F73: 1117.75 | G73: 0 | H73: قيمة 263 ريال بروفت العميل زياد بصري | I73: 0
B74: 13 | C74: 2019-10-15 | D74: 1311 | E74: عملاء كارت يلا سفــــــــــــــــــــر | F74: 0 | G74: 1117.75 | H74: قيمة 263 ريال بروفت العميل زياد بصري | I74: العميل زياد بصري
B75: 13 | C75: 2019-10-15 | D75: 1311 | E75: عملاء كارت يلا سفــــــــــــــــــــر | F75: 1117.75 | G75: 0 | H75: قيمة 263 ريال بروفت العميل زياد بصري | I75: العميل زياد بصري
B76: 13 | C76: 2019-10-15 | D76: 4212 | E76: إيرادات حجز طيران عملاء مدفوعه | F76: 0 | G76: 1117.75 | H76: قيمة 263 ريال بروفت العميل زياد بصري | I76: 0
E77: الإجمـــــــــــــــــــالي | F77: 2235.5 | G77: 2235.5 | H77: فقط ألفان ومائتان وخمسة وثلاثون جنيهاً وخمسون قرشاً
B78: 14 | C78: 2019-10-08 | D78: 1211 | E78: خزينة الشركه - جنيه مصري | F78: 31290.25 | G78: 0 | H78: قيمة تمويل الخزينة من الحساب الشخصي لنانسي بهيج | I78: 0
B79: 14 | C79: 2019-10-08 | D79: 2631 | E79: جاري شركــــــــاء دائن نانسي بهيج | F79: 0 | G79: 31290.25 | H79: قيمة تمويل الخزينة من الحساب الشخصي لنانسي بهيج | I79: 0
E80: الإجمـــــــــــــــــــالي | F80: 31290.25 | G80: 31290.25 | H80: فقط واحد وثلاثون ألف ومائتان وتسعون جنيهاً وخمسة وعشرون قرشاً
B81: 15 | C81: 2019-10-26 | D81: 1353 | E81: شركات شقيقه - شركة عميلي للسياحه | F81: 3057.6 | G81: 0 | H81: قيمة إيراد حجز العميل حمد الفارس في فندق جاردن بلاس | I81: 191.1$
B82: 15 | C82: 2019-10-26 | D82: 1311 | E82: عملاء كارت يلا سفــــــــــــــــــــر | F82: 0 | G82: 3057.6 | H82: قيمة إيراد حجز العميل حمد الفارس في فندق جاردن بلاس | I82: 191.1$
E83: الإجمـــــــــــــــــــالي | F83: 3057.6 | G83: 3057.6 | H83: فقط ثلاثة آلاف وسبعة وخمسون جنيهاً وستون قرشاً
B84: 16 | C84: 2019-10-26 | D84: 1311 | E84: عملاء كارت يلا سفــــــــــــــــــــر | F84: 3057.6 | G84: 0 | H84: قيمة إيراد حجز العميل حمد الفارس في فندق جاردن بلاس | I84: 0
B85: 16 | C85: 2019-10-26 | D85: 4211 | E85: إيرادات حجز فنادق عملاء مدفوعه | F85: 0 | G85: 3057.6 | H85: قيمة إيراد حجز العميل حمد الفارس في فندق جاردن بلاس | I85: 0
E86: الإجمـــــــــــــــــــالي | F86: 3057.6 | G86: 3057.6 | H86: فقط ثلاثة آلاف وسبعة وخمسون جنيهاً وستون قرشاً
B87: 17 | C87: 2019-10-26 | D87: 3131 | E87: مصاريف حجز فنادق عملاء مدفوعه | F87: 2890 | G87: 0 | H87: قيمة مصروف حجز العميل حمد الفارس | I87: ريال سعودي680
B88: 17 | C88: 2019-10-26 | D88: 1353 | E88: شركات شقيقه - شركة عميلي للسياحه | F88: 0 | G88: 2890 | H88: قيمة مصروف حجز العميل حمد الفارس | I88: ريال سعودي680
E89: الإجمـــــــــــــــــــالي | F89: 2890 | G89: 2890 | H89: فقط ألفان وثمانمائة وتسعون جنيهاً
B90: 18 | C90: 2019-10-26 | D90: 1353 | E90: شركات شقيقه - شركة عميلي للسياحه | F90: 12580 | G90: 0 | H90: قيمة إيراد طيران العميل محمد الأسود فايل رقم 8 | I90: شركة ثعلوب
B91: 18 | C91: 2019-10-26 | D91: 1311 | E91: عملاء كارت يلا سفــــــــــــــــــــر | F91: 0 | G91: 12580 | H91: قيمة إيراد طيران العميل محمد الأسود فايل رقم 9 | I91: العميل محمد علي الأسود
E92: الإجمـــــــــــــــــــالي | F92: 12580 | G92: 12580 | H92: فقط إثنى عشر ألف وخمسمائة وثمانون جنيهاً
B93: 19 | C93: 2019-10-31 | D93: 1311 | E93: عملاء كارت يلا سفــــــــــــــــــــر | F93: 12580 | G93: 0 | H93: قيمة إيراد طيران العميل محمد الأسود فايل رقم 8 | I93: 0
B94: 19 | C94: 2019-10-31 | D94: 4212 | E94: إيرادات حجز طيران عملاء مدفوعه | F94: 0 | G94: 12580 | H94: قيمة إيراد طيران العميل محمد الأسود فايل رقم 8 | I94: 0
E95: الإجمـــــــــــــــــــالي | F95: 12580 | G95: 12580 | H95: فقط إثنى عشر ألف وخمسمائة وثمانون جنيهاً
B96: 20 | C96: 2019-10-31 | D96: 3132 | E96: مصاريف حجز طيران عملاء مدفوعه | F96: 12580 | G96: 0 | H96: قيمة مصروف طيران العميل محمد الأسود فايل رقم 8 | I96: ريال سعودي2960
B97: 20 | C97: 2019-10-31 | D97: 3142 | E97: مصاريف حجز تذاكر طيران مجانيه عملاء الشركه | F97: 8245 | G97: 0 | H97: قيمة مصروف تذاكر طيران العميل محمد الأسود | I97: ريال سعودي1940
B98: 20 | C98: 2019-10-31 | D98: 1353 | E98: شركات شقيقه - شركة عميلي للسياحه | F98: 0 | G98: 20825 | H98: قيمة مصروف تذاكر طيران العميل محمد الأسود | I98: شركة العطار للسياحه
E99: الإجمـــــــــــــــــــالي | F99: 20825 | G99: 20825 | H99: فقط عشرون ألف وثمانمائة وخمسة وعشرون جنيهاً
B100: 21 | C100: 2019-10-31 | D100: 1353 | E100: شركات شقيقه - شركة عميلي للسياحه | F100: 6613 | G100: 0 | H100: قيمة إيراد حجز العميل محمد الأسود شقه فايل رقم 9 | I100: شركة ثعلوب للسياحه
B101: 21 | C101: 2019-10-31 | D101: 1311 | E101: عملاء كارت يلا سفــــــــــــــــــــر | F101: 0 | G101: 6613 | H101: قيمة إيراد حجز العميل محمد الأسود شقه فايل رقم 9 | I101: العميل محمد علي الأسود
C102: 2019-10-31 | E102: الإجمـــــــــــــــــــالي | F102: 6613 | G102: 6613 | H102: فقط ستة آلاف وستمائة وثلاثة عشر جنيهاً
B103: 22 | C103: 2019-10-31 | D103: 1311 | E103: عملاء كارت يلا سفــــــــــــــــــــر | F103: 6613 | G103: 0 | H103: قيمة إيراد حجز العميل محمد الأسود شقه فايل رقم 9 | I103: 0
B104: 22 | C104: 2019-10-31 | D104: 4211 | E104: إيرادات حجز فنادق عملاء مدفوعه | F104: 0 | G104: 6613 | H104: قيمة إيراد حجز العميل محمد الأسود شقه فايل رقم 9 | I104: 0
E105: الإجمـــــــــــــــــــالي | F105: 6613 | G105: 6613 | H105: فقط ستة آلاف وستمائة وثلاثة عشر جنيهاً
B106: 23 | C106: 2019-10-31 | D106: 3131 | E106: مصاريف حجز فنادق عملاء مدفوعه | F106: 6963.07 | G106: 0 | H106: قيمة مصروف حجز العميل محمد الأسود فايل رقم 9 | I106: 0
B107: 23 | C107: 2019-10-31 | D107: 2516 | E107: موردين كردت كارت الشركه | F107: 0 | G107: 6963.07 | H107: قيمة مصروف حجز العميل محمد الأسود فايل رقم 10 | I107: كردت كارت نانسي بنك كريدي أجريكول
E108: الإجمـــــــــــــــــــالي | F108: 6963.07 | G108: 6963.07 | H108: فقط ستة آلاف وتسعمائة وثلاثة وستون جنيهاً وسبعة قرشاً
B109: 24 | C109: 2019-10-31 | D109: 1211 | E109: خزينة الشركه - جنيه مصري | F109: 21550 | G109: 0 | H109: قيمة إيراد حجز العميل دسوقي عبد الواحد فايل رقم 10 | I109: 0
B110: 24 | C110: 2019-10-31 | D110: 1311 | E110: عملاء كارت يلا سفــــــــــــــــــــر | F110: 0 | G110: 21550 | H110: قيمة إيراد حجز العميل دسوقي عبد الواحد فايل رقم 10 | I110: العميل دسوقي عبدالواحد
E111: الإجمـــــــــــــــــــالي | F111: 21550 | G111: 21550 | H111: فقط واحد وعشرون ألف وخمسمائة وخمسون جنيهاً
B112: 25 | C112: 2019-10-31 | D112: 1311 | E112: عملاء كارت يلا سفــــــــــــــــــــر | F112: 21550 | G112: 0 | H112: قيمة إيراد حجز العميل دسوقي عبد الواحد فايل رقم 10 | I112: العميل دسوقي عبد الواحد
B113: 25 | C113: 2019-10-31 | D113: 4211 | E113: إيرادات حجز فنادق عملاء مدفوعه | F113: 0 | G113: 21550 | H113: قيمة إيراد حجز العميل دسوقي عبد الواحد فايل رقم 10 | I113: 0
E114: الإجمـــــــــــــــــــالي | F114: 21550 | G114: 21550 | H114: فقط واحد وعشرون ألف وخمسمائة وخمسون جنيهاً
B115: 26 | C115: 2019-10-31 | D115: 3131 | E115: مصاريف حجز فنادق عملاء مدفوعه | F115: 19915 | G115: 0 | H115: قيمة مصروف حجز العميل دسوقي عبد الواحد فايل رقم 10 | I115: 0
B116: 26 | C116: 2019-10-31 | D116: 1353 | E116: شركات شقيقه - شركة عميلي للسياحه | F116: 0 | G116: 19915 | H116: قيمة مصروف حجز العميل دسوقي عبد الواحد فايل رقم 10 | I116: 0
E117: الإجمـــــــــــــــــــالي | F117: 19915 | G117: 19915 | H117: فقط تسعة عشر ألف وتسعمائة وخمسة عشر جنيهاً
B118: 27 | C118: 2019-10-31 | D118: 1354 | E118: جاري شركاء مدين نانسي بهيج | F118: 21550 | G118: 0 | H118: قيمة توريد مبلغ إيراد العميل دسوقي عبدالواحد لنانسي بهيج | I118: 0
B119: 27 | C119: 2019-10-31 | D119: 1211 | E119: خزينة الشركه - جنيه مصري | F119: 0 | G119: 21550 | H119: قيمة توريد مبلغ إيراد العميل دسوقي عبدالواحد لنانسي بهيج | I119: 0
E120: الإجمـــــــــــــــــــالي | F120: 21550 | G120: 21550 | H120: فقط واحد وعشرون ألف وخمسمائة وخمسون جنيهاً
B121: 28 | C121: 2019-10-31 | D121: 1353 | E121: شركات شقيقه - شركة عميلي للسياحه | F121: 4462.5 | G121: 0 | H121: قيمة إيراد فرق ليالي مجانيه العميل سعد صالح فايل رقم 11 | I121: 1050 SAR
B122: 28 | C122: 2019-10-31 | D122: 1311 | E122: عملاء كارت يلا سفــــــــــــــــــــر | F122: 0 | G122: 4462.5 | H122: قيمة إيراد فرق ليالي مجانيه العميل سعد صالح فايل رقم 11 | I122: العميل سعد صالح
E123: الإجمـــــــــــــــــــالي | F123: 4462.5 | G123: 4462.5 | H123: فقط أربعة آلاف وأربعمائة واثنان وستون جنيهاً وخمسون قرشاً
B124: 29 | C124: 2019-10-31 | D124: 1311 | E124: عملاء كارت يلا سفــــــــــــــــــــر | F124: 4462.5 | G124: 0 | H124: قيمة إيراد فرق ليالي مجانيه العميل سعد صالح فايل رقم 11 | I124: العميل سعد صالح
B125: 29 | C125: 2019-10-31 | D125: 4221 | E125: إيراد فرق ليالي مجانيه عملاء الشركه | F125: 0 | G125: 4462.5 | H125: قيمة إيراد فرق ليالي مجانيه العميل سعد صالح فايل رقم 11 | I125: 0
E126: الإجمـــــــــــــــــــالي | F126: 4462.5 | G126: 4462.5 | H126: فقط أربعة آلاف وأربعمائة واثنان وستون جنيهاً وخمسون قرشاً
B127: 30 | C127: 2019-10-31 | D127: 3141 | E127: مصاريف حجز ليالي مجانيه عملاء الشركه | F127: 5920 | G127: 0 | H127: قيمة مصاريف ليالي مجانيه العميل سعد صالح فايل رقم 11 | I127: 370$
B128: 30 | C128: 2019-10-31 | D128: 1353 | E128: شركات شقيقه - شركة عميلي للسياحه | F128: 0 | G128: 5920 | H128: قيمة مصاريف ليالي مجانيه العميل سعد صالح فايل رقم 11 | I128: 370$
E129: الإجمـــــــــــــــــــالي | F129: 5920 | G129: 5920 | H129: فقط خمسة آلاف وتسعمائة وعشرون جنيهاً
B130: 31 | C130: 2019-10-31 | D130: 1353 | E130: شركات شقيقه - شركة عميلي للسياحه | F130: 15142.75 | G130: 0 | H130: قيمة إيراد حجز العميله تلا محمد البصري فايل رقم 12 | I130: شركة العطار للسياحه 3563ريال سعودي
B131: 31 | C131: 2019-10-31 | D131: 1311 | E131: عملاء كارت يلا سفــــــــــــــــــــر | F131: 0 | G131: 15142.75 | H131: قيمة إيراد حجز العميله تلا محمد البصري فايل رقم 12 | I131: العميل محمد البصري
E132: الإجمـــــــــــــــــــالي | F132: 15142.75 | G132: 15142.75 | H132: فقط خمسة عشر ألف ومائة واثنان وأربعون جنيهاً وخمسة وسبعون قرشاً
B133: 32 | C133: 2019-10-31 | D133: 1311 | E133: عملاء كارت يلا سفــــــــــــــــــــر | F133: 15142.75 | G133: 0 | H133: قيمة إيراد حجز العميل محمد البصري فايل رقم 12 | I133: العميل محمد البصري
B134: 32 | C134: 2019-10-31 | D134: 4211 | E134: إيرادات حجز فنادق عملاء مدفوعه | F134: 0 | G134: 15142.75 | H134: قيمة إيراد فرق حجز العميل محمد البصري فايل رقم 12 | I134: 0
E135: الإجمـــــــــــــــــــالي | F135: 15142.75 | G135: 15142.75 | H135: فقط خمسة عشر ألف ومائة واثنان وأربعون جنيهاً وخمسة وسبعون قرشاً
B136: 33 | C136: 2019-10-31 | D136: 3131 | E136: مصاريف حجز فنادق عملاء مدفوعه | F136: 15200 | G136: 0 | H136: قيمة حجز العميل محمد البصري فايل رقم 12 | I136: 0
B137: 33 | C137: 2019-10-31 | D137: 1353 | E137: شركات شقيقه - شركة عميلي للسياحه | F137: 0 | G137: 15200 | H137: قيمة حجز العميل محمد البصري فايل رقم 12 | I137: 0
E138: الإجمـــــــــــــــــــالي | F138: 15200 | G138: 15200 | H138: فقط خمسة عشر ألف ومائتان جنيهاً
B139: 34 | C139: 2019-10-31 | D139: 1354 | E139: جاري شركاء مدين نانسي بهيج | F139: 43200 | G139: 0 | H139: قيمة توريدات للشركه من مستحقاتنا لدى شركة عميلي ليد نانسي بهيج | I139: 2700$
B140: 34 | C140: 2019-10-31 | D140: 1354 | E140: جاري شركاء مدين نانسي بهيج | F140: 27376 | G140: 0 | H140: قيمة توريدات للشركه من مستحقاتنا لدى شركة عميلي ليد نانسي بهيج | I140: 1711$
B141: 34 | C141: 2019-10-31 | D141: 1354 | E141: جاري شركاء مدين نانسي بهيج | F141: 22160 | G141: 0 | H141: قيمة توريدات للشركه من مستحقاتنا لدى شركة عميلي ليد نانسي بهيج | I141: 1385$
B142: 34 | C142: 2019-10-31 | D142: 1354 | E142: جاري شركاء مدين نانسي بهيج | F142: 1600 | G142: 0 | H142: قيمة توريدات لخزينة الشركه | I142: 100$
B143: 34 | C143: 2019-10-31 | D143: 1353 | E143: شركات شقيقه - شركة عميلي للسياحه | G143: 92736 | H143: قيمة توريدات للشركه من مستحقاتنا لدى شركة عميلي ليد نانسي بهيج | I143: 0
B144: 34 | C144: 2019-10-31 | D144: 1211 | E144: خزينة الشركه - جنيه مصري | G144: 1600 | H144: قيمة ماتم سداده لنانسي بهيج من توريدات الخزينه | I144: 0
E146: الإجمـــــــــــــــــــالي | F146: 94336 | G146: 94336 | H146: فقط أربعة وتسعون ألف وثلاثمائة وستة وثلاثون جنيهاً
B147: 35 | C147: 2019-10-31 | D147: 3111 | E147: مصاريف مرتبات ومكافآت | F147: 61365 | H147: قيمة مرتبات العاملين عن شهر أكتوبر | I147: 0
B148: 35 | C148: 2019-10-31 | D148: 2641 | E148: مرتبات مستحقه | F148: 0 | G148: 59465 | H148: قيمة مرتبات العاملين المستحقه عن شهر أكتوبر | I148: 0
B149: 35 | C149: 2019-10-31 | D149: 3111 | E149: مصاريف مرتبات ومكافآت | F149: 0 | G149: 700 | H149: غياب العاملين خصما من حساب المرتبات | I149: 0
B150: 35 | C150: 2019-10-31 | D150: 3111 | E150: مصاريف مرتبات ومكافآت | F150: 0 | G150: 100 | H150: خصومات العاملين خصما من حساب المرتبات | I150: 0
B151: 35 | C151: 2019-10-31 | D151: 1331 | E151: سلــــــف موظفين | F151: 0 | G151: 500 | H151: سداد سلفه دعاء | I151: 0
B152: 35 | C152: 2019-10-31 | D152: 1331 | E152: سلــــــف موظفين | F152: 0 | G152: 600 | H152: سداد سلفه سارة زياده | I152: 0
E153: الإجمـــــــــــــــــــالي | F153: 61365 | G153: 61365 | H153: فقط واحد وستون ألف وثلاثمائة وخمسة وستون جنيهاً
B154: 36 | C154: 2019-10-31 | D154: 1341 | E154: تأمينات لدى الغير | F154: 17500 | G154: 0 | H154: قيمة تأمين مقر الشركه | I154: 0
B155: 36 | C155: 2019-10-31 | D155: 3261 | E155: مصاريف نقل مستلزمات الشركه | F155: 2150 | G155: 0 | H155: نقل مكاتب وكمبيوترات الشركه | I155: 0
B156: 36 | C156: 2019-10-31 | D156: 32704 | E156: مصاريف أدوات كتابيه عموميه | F156: 450 | G156: 0 | H156: قيمة ألات حاسبه وأدوات كتابيه | I156: 0
B157: 36 | C157: 2019-10-31 | D157: 3128 | E157: مصاريف كمبيوتر وشبكات | F157: 2400 | G157: 0 | H157: قيمة 3 أسابيع من سيرفر VPN | I157: 150
B158: 36 | C158: 2019-10-31 | D158: 3126 | E158: مصاريف إتصالات إنترنت | F158: 9350 | G158: 0 | H158: شحن خطوط الإتصال من 10/08 حتى 11/03 | I158: 2200
B159: 36 | C159: 2019-10-31 | D159: 2632 | E159: جاري شركــــــــاء دائن إبراهيم عطوه | F159: 0 | G159: 31850 | H159: قيمة مساهمة الشريك إبراهيم عطوه | I159: 0
E160: الإجمـــــــــــــــــــالي | F160: 31850 | G160: 31850 | H160: فقط واحد وثلاثون ألف وثمانمائة وخمسون جنيهاً
B161: 37 | C161: 2019-10-31 | D161: 1354 | E161: جاري شركاء مدين نانسي بهيج | F161: 92534.99
B162: 37 | C162: 2019-10-31 | D162: 1355 | E162: جاري شركاء مدين إبراهيم عطوه | F162: 33079.74
B163: 37 | C163: 2019-10-31 | D163: 1353 | E163: شركات شقيقه - شركة عميلي للسياحه | G163: 33079.74
B164: 37 | C164: 2019-10-31 | D164: 2631 | E164: جاري شركــــــــاء دائن نانسي بهيج | G164: 92534.99
E165: الإجمـــــــــــــــــــالي | F165: 125614.73 | G165: 125614.73 | H165: فقط مائة وخمسة وعشرون ألف وستمائة وأربعة عشر جنيهاً وثلاثة وسبعون قرشاً

Sheet اليوميه العامه
B2: اليوميـــــــــــــــة العامه لشهر أكتوبر2019
H3: 1111 | J3: 1121 | L3: 1122 | N3: 1123 | P3: 1124 | R3: 1125 | T3: 1126 | V3: 1129 | X3: 1131 | Z3: 1132 | AB3: 1133 | AD3: 1134 | AF3: 1135 | AH3: 1136 | AJ3: 1141 | AL3: 1151 | AN3: 1211 | AP3: 1212 | AR3: 1221 | AT3: 1231 | AV3: 1241 | AX3: 1311 | AZ3: 1312 | BB3: 1313 | BD3: 1314 | BF3: 1321 | BH3: 1322 | BJ3: 1323 | BL3: 1331 | BN3: 1332 | BP3: 1341 | BR3: 1351 | BT3: 1352 | BV3: 1353 | BX3: 1354 | BZ3: 1355 | CB3: 2111 | CD3: 2112 | CF3: 2121 | CH3: 2122 | CJ3: 2211 | CL3: 2212 | CN3: 2311 | CP3: 2321 | CR3: 2322 | DF3: 2511 | DH3: 2512 | DJ3: 2513 | DL3: 2514 | DN3: 2515 | DP3: 2516 | EB3: 2631 | EF3: 2641 | ET3: 3111 | EV3: 3121 | EX3: 3122 | FJ3: 3128 | FL3: 3131 | FN3: 3132 | FZ3: 3141 | GB3: 3142 | IB3: 3232 | IF3: 3241 | IH3: 3251 | IN3: 3262 | IT3: 32703 | IV3: 32704 | IX3: 32705 | IZ3: 32706 | JF3: 32709 | JN3: 32713 | JX3: 4211 | JZ3: 4212 | KL3: 4221
B4: رقم القيد | C4: التاريخ | D4: البيــــــــــان | E4: الفرق | F4: الإجمـــالي | H4: أرض 1 | J4: أثاث مكاتب | L4: سجاجيد | N4: خزائن | P4: نجف وأبليكات | R4: أنتريهات | T4: ستائـــــــــــر | V4: تجهيزات مكاتب أخرى | X4: تكييفات ومراوح | Z4: أجهزة موبايل | AB4: ماكينات تصوير | AD4: أجهزة كمبيوتر | AF4: معدات كمبيوتر | AH4: برامج ومواقع | AJ4: سياره 1 | AL4: إستثمار طويل الأجل 1 | AN4: خزينة الشركه - جنيه مصري | AP4: خزينة الشركه - دولار أمريكي | AR4: أوراق قبض (كردت كارت بنك مصر) دولار أمريكي | AT4: بنك مصر | AV4: وديعة بنك 1 | AX4: عملاء كارت يلا سفــــــــــــــــــــر | AZ4: عمــــــلاء وكالات | BB4: عمــــــلاء حجز كاش | BD4: عملاء بيع خارجي Corprate | BF4: عهـد موظفين | BH4: عهــــد إداره | BJ4: عهد وكالات | BL4: سلــــــف موظفين | BN4: سلــــــف إداره | BP4: تأمينات لدى الغير | BR4: مصروفات مدفوعه مقدماً | BT4: إيرادات مستحقه | BV4: شركات شقيقه - شركة عميلي للسياحه | BX4: جاري شركاء مدين نانسي بهيج | BZ4: جاري شركاء مدين إبراهيم عطوه | CB4: مســــــاهمة الشريك نانسي بهيج | CD4: مساهمة الشريك إبراهيم عطوه | CF4: أربـــاح وخسائر العام | CH4: أرباح وخسائر سنوات سابقه | CJ4: إحتياطي عام 2.5% | CL4: احتياطى شراء اصول ثابتة | CN4: مخصص ضرائب مستحقه | CP4: مخصص اهلاك مبانى | CR4: مخصص اهلاك الات ومعدات | CT4: مخصص اهلاك اثاث | CV4: مخصص اهلاك سيارات | CX4: مخصص ديون مشكوك فيها | CZ4: مخصص هبوط استثمارات | DB4: قرض طويل الأجل 1 | DD4: التزامات طويلة الأجل 1 | DF4: موردين فنادق | DH4: موردين شركات سياحه | DJ4: موردين شركات طيران | DL4: موردين شركات نقل سياحي | DN4: موردين تأشيرات | DP4: موردين كردت كارت الشركه | DR4: موردين تشغيل | DT4: شيكات (دفع ) تحت التحصيل | DV4: تأمينات مستحقه | DX4: ضــــــــرائب دائنه | DZ4: ايرادات مستحقة دائنه | EB4: جاري شركــــــــاء دائن نانسي بهيج | ED4: جاري شركــــــــاء دائن إبراهيم عطوه | EF4: مرتبات مستحقه | EH4: إيجـــــــــــارات مستحقه | EJ4: مصاريف مراجعه مستحقه | EL4: مصــــــاريف إدارية مستحقه | EN4: فواتير تليفونات مستحقه | EP4: فواتير موبايلات مستحقه | ER4: فواتير موبايلات مستحقه | ET4: مصاريف مرتبات ومكافآت | EV4: مصاريف تليفونات أرضي | EX4: مصاريف مكالمات موبايلات | EZ4: مصاريف خطوط شحن | FB4: مصاريف كروت شحن سعودي | FD4: مصاريف كروت شحن مصري | FF4: مصاريف إتصالات إنترنت | FH4: مصاريف تركيبات تليفونات | FJ4: مصاريف كمبيوتر وشبكات | FL4: مصاريف حجز فنادق عملاء مدفوعه | FN4: مصاريف حجز طيران عملاء مدفوعه | FP4: مصاريف إنتقال وتوصيل عملاء مدفوعه | FR4: مصاريف تأشيرات عملاء مدفوعه | FT4: مصاريف مزارات عملاء مدفوعه | FV4: مصاريف خدمة Priority Pass | FX4: مصاريف عشاء عملاء مدفوعه | FZ4: مصاريف حجز ليالي مجانيه عملاء الشركه | GB4: مصاريف حجز تذاكر طيران مجانيه عملاء الشركه | GD4: مصاريف فوتشرات مجانيه ماليه عملاء الشركه | GF4: مصاريف إنتقال وتوصيل مجانيه عملاء الشركه | GH4: مصاريف مزارات مجانيه عملاء الشركه | GJ4: مصاريف عشاء مجاني عملاء الشركه | GL4: مصاريف حجز فنادق عملاء خارجيين | GN4: مصاريف حجز طيران عملاء خارجيين | GP4: مصاريف إنتقال وتوصيل عملاء خارجيين | GR4: مصاريف تأشيرات عملاء خارجيين | GT4: مصاريف مزارات عملاء خارجيين | GV4: مصاريف خدمة Priority Pass عملاء خارجيين | GX4: مصاريف عشاء عملاء خارجيين | GZ4: مصاريف بنكيه | HB4: مصاريف عمولات بنكيه | HD4: مصاريف عمولات تسويق وكالات | HF4: مصاريف عمولات تسويق خارجي | HH4: مصاريف بريد | HJ4: مصاريف مطبوعات | HL4: مصاريف داتا | HN4: مصاريف رحلات عمل | HP4: مصاريف خصم كروت | HR4: مصاريف دعايه وإعلان وترويج | HT4: مصاريف علاقات عامه وإستقبال | HV4: مرتبات ومكافأت عموميه | HX4: حصة الشركه في التأمينات عموميه | HZ4: مصاريف مياه عموميه | IB4: مصاريف كهرباء عموميه | ID4: مصاريف غاز عموميه | IF4: مصاريف إيجار | IH4: مصاريف بوفيه | IJ4: مصاريف ترفيه | IL4: مصاريف نقل مستلزمات الشركه | IN4: مصاريف إنتقالات موظفين عموميه | IP4: مواد تعبئة وتغليف | IR4: خصم مسموح به | IT4: مصاريف مكتب أخرى عموميه | IV4: مصاريف أدوات كتابيه عموميه | IX4: مصاريف صيانه عموميه | IZ4: إكراميات عموميه | JB4: مصاريف مراجعه عموميه | JD4: مصاريف فرق تقويم عمله | JF4: مصاريف نظافه | JH4: مصاريف غرامات عموميه | JJ4: مصاريف مكافآت لغير العاملين عن خدمات مؤداه | JL4: مصاريف سنوات سابقه | JN4: مصاريف رسوم إداريه | JP4: رسوم وضرائب | JR4: إيرادات كروت يلا سفـــــر للشركه | JT4: إيرادات كروت يلا سفـــــر للوكالات | JV4: إيرادات كروت شركات تسويق أخرى | JX4: إيرادات حجز فنادق عملاء مدفوعه | JZ4: إيرادات حجز طيران عملاء مدفوعه | KB4: إيرادات إنتقال وتوصيل عملاء مدفوعه | KD4: إيرادات تأشيرات عملاء مدفوعه | KF4: إيرادات مزارات عملاء مدفوعه | KH4: إيرادات خدمة Priority Pass مدفوعه | KJ4: إيرادات عشاء عملاء مدفوعه | KL4: إيراد فرق ليالي مجانيه عملاء الشركه | KN4: إيراد فرق حجز تذاكر طيران مجانيه عملاء الشركه | KP4: إيراد فرق فوتشرات مجانيه ماليه عملاء الشركه | KR4: إيراد فرق إنتقال وتوصيل مجانيه عملاء الشركه | KT4: إيراد فرق مزارات مجانيه عملاء الشركه | KV4: إيراد فرق عشاء مجاني عملاء الشركه | KX4: إيرادات حجز فنادق عملاء خارجيين | KZ4: إيرادات حجز طيران عملاء خارجيين | LB4: إيرادات إنتقال وتوصيل عملاء خارجيين | LD4: إيرادات تأشيرات عملاء خارجيين | LF4: إيرادات مزارات عملاء خارجيين | LH4: إيرادات خدمة Priority Pass عملاء خارجيين | LJ4: إيرادات عشاء عملاء خارجيين | LL4: إيراد خدمات عملاء وكالة 1 | LN4: إيراد خدمات عملاء وكالات أخرى | LP4: إيرادات أخرى كروت (رسوم خصم) | LR4: إيرادات أخرى حجز | LT4: إيرادات أخرى فرق تقويم عمله | LV4: ايرادت الاستثمار | LX4: خصم مكتسب | LZ4: ارباح راسمالية | MB4: ايجارات دائنة | MD4: ايرادات اخرى متنوعة | MF4: إيرادات سنوات سابقه
B5: No | C5: Date | D5: Statement | E5: Difference | F5: مدين | G5: دائن | H5: مدين | I5: دائن | J5: مدين | K5: دائن | L5: مدين | M5: دائن | N5: مدين | O5: دائن | P5: مدين | Q5: دائن | R5: مدين | S5: دائن | T5: مدين | U5: دائن | V5: مدين | W5: دائن | X5: مدين | Y5: دائن | Z5: مدين | AA5: دائن | AB5: مدين | AC5: دائن | AD5: مدين | AE5: دائن | AF5: مدين | AG5: دائن | AH5: مدين | AI5: دائن | AJ5: مدين | AK5: دائن | AL5: مدين | AM5: دائن | AN5: مدين | AO5: دائن | AP5: مدين | AQ5: دائن | AR5: مدين | AS5: دائن | AT5: مدين | AU5: دائن | AV5: مدين | AW5: دائن | AX5: مدين | AY5: دائن | AZ5: مدين | BA5: دائن | BB5: مدين | BC5: دائن | BD5: مدين | BE5: دائن | BF5: مدين | BG5: دائن | BH5: مدين | BI5: دائن | BJ5: مدين | BK5: دائن | BL5: مدين | BM5: دائن | BN5: مدين | BO5: دائن | BP5: مدين | BQ5: دائن | BR5: مدين | BS5: دائن | BT5: مدين | BU5: دائن | BV5: مدين | BW5: دائن | BX5: مدين | BY5: دائن | BZ5: مدين | CA5: دائن | CB5: مدين | CC5: دائن | CD5: مدين | CE5: دائن | CF5: مدين | CG5: دائن | CH5: مدين | CI5: دائن | CJ5: مدين | CK5: دائن | CL5: مدين | CM5: دائن | CN5: مدين | CO5: دائن | CP5: مدين | CQ5: دائن | CR5: مدين | CS5: دائن | CT5: مدين | CU5: دائن | CV5: مدين | CW5: دائن | CX5: مدين | CY5: دائن | CZ5: مدين | DA5: دائن | DB5: مدين | DC5: دائن | DD5: مدين | DE5: دائن | DF5: مدين | DG5: دائن | DH5: مدين | DI5: دائن | DJ5: مدين | DK5: دائن | DL5: مدين | DM5: دائن | DN5: مدين | DO5: دائن | DP5: مدين | DQ5: دائن | DR5: مدين | DS5: دائن | DT5: مدين | DU5: دائن | DV5: مدين | DW5: دائن | DX5: مدين | DY5: دائن | DZ5: مدين | EA5: دائن | EB5: مدين | EC5: دائن | ED5: مدين | EE5: دائن | EF5: مدين | EG5: دائن | EH5: مدين | EI5: دائن | EJ5: مدين | EK5: دائن | EL5: مدين | EM5: دائن | EN5: مدين | EO5: دائن | EP5: مدين | EQ5: دائن | ER5: مدين | ES5: دائن | ET5: مدين | EU5: دائن | EV5: مدين | EW5: دائن | EX5: مدين | EY5: دائن | EZ5: مدين | FA5: دائن | FB5: مدين | FC5: دائن | FD5: مدين | FE5: دائن | FF5: مدين | FG5: دائن | FH5: مدين | FI5: دائن | FJ5: مدين | FK5: دائن | FL5: مدين | FM5: دائن | FN5: مدين | FO5: دائن | FP5: مدين | FQ5: دائن | FR5: مدين | FS5: دائن | FT5: مدين | FU5: دائن | FV5: مدين | FW5: دائن | FX5: مدين | FY5: دائن | FZ5: مدين | GA5: دائن | GB5: مدين | GC5: دائن | GD5: مدين | GE5: دائن | GF5: مدين | GG5: دائن | GH5: مدين | GI5: دائن | GJ5: مدين | GK5: دائن | GL5: مدين | GM5: دائن | GN5: مدين | GO5: دائن | GP5: مدين | GQ5: دائن | GR5: مدين | GS5: دائن | GT5: مدين | GU5: دائن | GV5: مدين | GW5: دائن | GX5: مدين | GY5: دائن | GZ5: مدين | HA5: دائن | HB5: مدين | HC5: دائن | HD5: مدين | HE5: دائن | HF5: مدين | HG5: دائن | HH5: مدين | HI5: دائن | HJ5: مدين | HK5: دائن | HL5: مدين | HM5: دائن | HN5: مدين | HO5: دائن | HP5: مدين | HQ5: دائن | HR5: مدين | HS5: دائن | HT5: مدين | HU5: دائن | HV5: مدين | HW5: دائن | HX5: مدين | HY5: دائن | HZ5: مدين | IA5: دائن | IB5: مدين | IC5: دائن | ID5: مدين | IE5: دائن | IF5: مدين | IG5: دائن | IH5: مدين | II5: دائن | IJ5: مدين | IK5: دائن | IL5: مدين | IM5: دائن | IN5: مدين | IO5: دائن | IP5: مدين | IQ5: دائن | IR5: مدين | IS5: دائن | IT5: مدين | IU5: دائن | IV5: مدين | IW5: دائن | IX5: مدين | IY5: دائن | IZ5: مدين | JA5: دائن | JB5: مدين | JC5: دائن | JD5: مدين | JE5: دائن | JF5: مدين | JG5: دائن | JH5: مدين | JI5: دائن | JJ5: مدين | JK5: دائن | JL5: مدين | JM5: دائن | JN5: مدين | JO5: دائن | JP5: مدين | JQ5: دائن | JR5: مدين | JS5: دائن | JT5: مدين | JU5: دائن | JV5: مدين | JW5: دائن | JX5: مدين | JY5: دائن | JZ5: مدين | KA5: دائن | KB5: مدين | KC5: دائن | KD5: مدين | KE5: دائن | KF5: مدين | KG5: دائن | KH5: مدين | KI5: دائن | KJ5: مدين | KK5: دائن | KL5: مدين | KM5: دائن | KN5: مدين | KO5: دائن | KP5: مدين | KQ5: دائن | KR5: مدين | KS5: دائن | KT5: مدين | KU5: دائن | KV5: مدين | KW5: دائن | KX5: مدين | KY5: دائن | KZ5: مدين | LA5: دائن | LB5: مدين | LC5: دائن | LD5: مدين | LE5: دائن | LF5: مدين | LG5: دائن | LH5: مدين | LI5: دائن | LJ5: مدين | LK5: دائن | LL5: مدين | LM5: دائن | LN5: مدين | LO5: دائن | LP5: مدين | LQ5: دائن | LR5: مدين | LS5: دائن | LT5: مدين | LU5: دائن | LV5: مدين | LW5: دائن | LX5: مدين | LY5: دائن | LZ5: مدين | MA5: دائن | MB5: مدين | MC5: دائن | MD5: مدين | ME5: دائن | MF5: مدين | MG5: دائن
B6: 1 | C6: 2019-10-31 | D6: قيمة مصاريف خزينة الشركه عن شهر أكتوبر | E6: =F6=G6 -> TRUE | F6: =SUMIF($H$5:$MG$5,"مدين",H6:MG6) -> 31840.25 | G6: =SUMIF($H$5:$MG$5,"مدين",I6:MG6) -> 31840.25 | P6: 2730 | R6: 4700 | T6: 2800 | AO6: 31840.25 | BL6: 1100 | FJ6: =682.48+1000 -> 1682.48 | IB6: 212 | IF6: 5000 | IH6: 442.25 | IJ6: 1000 | IL6: 300 | IN6: 25 | IT6: 4343 | IX6: 1442.5 | IZ6: 358.52 | JF6: 1204.5 | JJ6: 2000 | JN6: 2500
B7: 2 | C7: 2019-10-31 | D7: قيمة تسوية إيرادات الكروت عن أكتوبر 2019 | E7: =F7=G7 -> TRUE | F7: 184005.8 | G7: 184005.8 | AY7: =4800+400+7520+3040 -> 15760 | BF7: =2672+6800 -> 9472 | BH7: 9440 | BV7: =124378.8+1593.75+39121.25 -> 165093.8 | JS7: 168245.8
B8: 3 | C8: 2019-10-14 | D8: قيمة سداد العميله مدام نشوى لإيراد حجزها في فندق الحياه ريجنسي فايل 1 | E8: TRUE | F8: 7400 | G8: 7400 | AN8: 7400 | AY8: 7400
B9: 4 | C9: 2019-10-14 | D9: قيمة إيراد حجز العميله مدام نشوى في فندق الحياه ريجنسي فايل 1 | E9: TRUE | F9: 7400 | G9: 7400 | AX9: 7400 | JY9: 7400
B10: 5 | C10: 2019-10-14 | D10: قيمة مصروفات حجز العميله مدام نشوى في فندق الحياه ريجنسي فايل 1 | E10: TRUE | F10: 6850 | G10: 6850 | AO10: 6850 | FL10: 6850
B11: 6 | C11: 2019-10-14 | D11: قيمة سداد العميل حسين هندي لإيراد حجزه في فندق الحياه ريجنسي فايل 2 | E11: TRUE | F11: 4813.6 | G11: 4813.6 | AN11: 1600 | AY11: 4813.6 | BV11: 3213.6
B12: 7 | C12: 2019-10-14 | D12: قيمة إيراد حجز العميل حسين هندي في فندق الحياه ريجنسي فايل 2 | E12: TRUE | F12: 4813.6 | G12: 4813.6 | AX12: 4813.6 | JY12: 4813.6
B13: 8 | C13: 2019-10-14 | D13: قيمة مصروف حجز العميل حسين هندي في فندق الحياه ريجنسي فايل 2 | E13: TRUE | F13: 4800 | G13: 4800 | BW13: 4800 | FL13: 4800
B14: 9 | C14: 2019-10-19 | D14: قيمة سداد العميل سلطان الحكمي لإيراد حجزه في لاونج هوتيل سويت فايل 3 | E14: TRUE | F14: 670.8 | G14: 670.8 | AY14: 670.8 | BV14: 670.8
B15: 10 | C15: 2019-10-19 | D15: قيمة إيراد حجز العميل سلطان الحكمي في لاونج هوتيل سويت فايل 3 | E15: TRUE | F15: 670.8 | G15: 670.8 | AX15: 670.8 | JY15: 670.8
B16: 11 | C16: 2019-10-19 | D16: قيمة سداد مصروف حجز العميل سلطان الحكمي من شركة عميلي فايل3 | E16: TRUE | F16: 608 | G16: 608 | BW16: 608 | FL16: 608
B17: 12 | C17: 2019-10-19 | D17: قيمة ربح فايل رقم 4 العميله نسرين اليماني لدى شركة عميلي | E17: TRUE | F17: 408 | G17: 408 | AX17: 204 | AY17: 204 | BV17: 204 | KA17: 204
B18: 13 | C18: 2019-10-15 | D18: قيمة ربح فايل رقم 5 العميل زياد بصري لدى شركة عميلي | E18: TRUE | F18: 2235.5 | G18: 2235.5 | AX18: 1117.75 | AY18: 1117.75 | BV18: 1117.75 | KA18: 1117.75
B19: 14 | C19: 2019-10-08 | D19: قيمة تمويل الخزينة من الحساب الشخصي لنانسي بهيج | E19: TRUE | F19: 31290.25 | G19: 31290.25 | AN19: 31290.25 | EC19: 31290.25
B20: 15 | C20: 2019-10-26 | D20: قيمة إيراد حجز العميل حمد الفارس في فندق جاردن بلاس فايل رقم 7 | E20: TRUE | F20: 3057.6 | G20: 3057.6 | AY20: 3057.6 | BV20: 3057.6
B21: 16 | C21: 2019-10-26 | D21: قيمة إيراد حجز العميل حمد الفارس في فندق جاردن بلاس فايل رقم 7 | E21: TRUE | F21: 3057.6 | G21: 3057.6 | AX21: 3057.6 | JY21: 3057.6
B22: 17 | C22: 2019-10-26 | D22: قيمة مصروف حجز العميل حمد الفارس في فندق جاردن بلاس فايل 7 | E22: TRUE | F22: 2890 | G22: 2890 | BW22: 2890 | FL22: 2890
B23: 18 | C23: 2019-10-26 | D23: قيمة إيراد طيران العميل محمد الأسود فايل رقم8 2960 ريال | E23: TRUE | F23: 12580 | G23: 12580 | AY23: 12580 | BV23: 12580
B24: 19 | C24: 2019-10-31 | D24: قيمة إيراد طيران العميل محمد الأسود فايل رقم 8 | E24: TRUE | F24: 12580 | G24: 12580 | AX24: 12580 | KA24: 12580
B25: 20 | C25: 2019-10-31 | D25: قيمة مصروف طيران العميل محمد الأسود فايل رقم 8 | E25: TRUE | F25: 20825 | G25: 20825 | BW25: 20825 | FN25: 12580 | GB25: 8245
B26: 21 | C26: 2019-10-31 | D26: قيمة إيراد حجز العميل محمد الأسود شقه فايل رقم 9 | E26: TRUE | F26: 6613 | G26: 6613 | AY26: 6613 | BV26: 6613
B27: 22 | C27: 2019-10-31 | D27: قيمة إيراد حجز العميل محمد الأسود شقه فايل رقم 9 | E27: TRUE | F27: 6613 | G27: 6613 | AX27: 6613 | JY27: 6613
B28: 23 | C28: 2019-10-31 | D28: قيمة مصروف حجز العميل محمد الأسود شقه فايل رقم 9 | E28: TRUE | F28: 6963.07 | G28: 6963.07 | DQ28: 6963.07 | FL28: 6963.07
B29: 24 | C29: 2019-10-31 | D29: قيمة إيراد حجز العميل دسوقي عبد الواحد فايل رقم 10 | E29: TRUE | F29: 21550 | G29: 21550 | AN29: 21550 | AY29: 21550
B30: 25 | C30: 2019-10-31 | D30: قيمة إيراد حجز العميل دسوقي عبد الواحد فايل رقم 10 | E30: TRUE | F30: 21550 | G30: 21550 | AX30: 21550 | JY30: 21550
B31: 26 | C31: 2019-10-31 | D31: قيمة مصروف حجز العميل دسوقي عبد الواحد فايل رقم 10 | E31: TRUE | F31: 19915 | G31: 19915 | BW31: 19915 | FL31: 19915
B32: 27 | C32: 2019-10-31 | D32: قيمة توريد مبلغ إيراد العميل دسوقي عبدالواحد لنانسي بهيج | E32: TRUE | F32: 21550 | G32: 21550 | AO32: 21550 | BX32: 21550
B33: 28 | C33: 2019-10-31 | D33: قيمة إيراد فرق ليالي مجانيه العميل سعد صالح فايل رقم 11 | E33: TRUE | F33: 4462.5 | G33: 4462.5 | AY33: 4462.5 | BV33: 4462.5
B34: 29 | C34: 2019-10-31 | D34: قيمة إيراد فرق ليالي مجانيه العميل سعد صالح فايل رقم 11 | E34: =F34=G34 -> TRUE | F34: 4462.5 | G34: 4462.5 | AX34: 4462.5 | KM34: 4462.5
B35: 30 | C35: 2019-10-31 | D35: قيمة مصاريف ليالي مجانيه العميل سعد صالح فايل رقم 11 | E35: TRUE | F35: 5920 | G35: 5920 | BW35: 5920 | FZ35: 5920
B36: 31 | C36: 2019-10-31 | D36: قيمة إيراد حجز العميل تلا محمد البصري فايل رقم 12 | E36: TRUE | F36: 15142.75 | G36: 15142.75 | AY36: 15142.75 | BV36: 15142.75
B37: 32 | C37: 2019-10-31 | D37: قيمة إيراد حجز العميل تلا محمد البصري فايل رقم 12 | E37: TRUE | F37: 15142.75 | G37: 15142.75 | AX37: 15142.75 | JY37: 15142.75
B38: 33 | C38: 2019-10-31 | D38: قيمة مصاريف حجز العميله تلا محمد البصري فايل رقم 12 | E38: TRUE | F38: 15200 | G38: 15200 | BW38: 15200 | FL38: 15200
B39: 34 | C39: 2019-10-31 | D39: قيمة توريدات للشركه من مستحقاتنا لدى شركة عميلي ليد نانسي بهيج | E39: TRUE | F39: 94336 | G39: 94336 | AO39: 1600 | BW39: 92736 | BX39: =43200+27376+22160+1600 -> 94336
B40: 35 | C40: 2019-10-31 | D40: قيمة مرتبات العاملين عن شهر أكتوبر | E40: TRUE | F40: 61365 | G40: 61365 | BM40: =500+600 -> 1100 | EG40: 59465 | ET40: 61365 | EU40: =700+100 -> 800
B41: 36 | C41: 2019-10-31 | D41: قيمة مساهمة الشريك إبراهيم عطوه | E41: TRUE | F41: 31850 | G41: 31850 | BP41: 17500 | EE41: 31850 | FF41: 9350 | FJ41: 2400 | IL41: 2150 | IV41: 450
B42: 37 | C42: 2019-10-31 | D42: قيمة توزيع الأرباح على الشريكين نانسي بهيج وإبراهيم عطوه ورد مصاريفهم | E42: TRUE | F42: 125614.73 | G42: 125614.73 | BW42: 33079.74 | BX42: 92534.99 | BZ42: 33079.74 | EC42: 92534.99
B43: الاجمالي | E43: TRUE | F43: =SUM(F6:F42) -> 821047.1 | G43: =SUM(G6:G42) -> 821047.1 | H43: 0 | I43: 0 | J43: 0 | K43: 0 | L43: 0 | M43: 0 | N43: 0 | O43: 0 | P43: 2730 | Q43: 0 | R43: 4700 | S43: 0 | T43: 2800 | U43: 0 | V43: 0 | W43: 0 | X43: 0 | Y43: 0 | Z43: 0 | AA43: 0 | AB43: 0 | AC43: 0 | AD43: 0 | AE43: 0 | AF43: 0 | AG43: 0 | AH43: 0 | AI43: 0 | AJ43: 0 | AK43: 0 | AL43: 0 | AM43: 0 | AN43: 61840.25 | AO43: 61840.25 | AP43: 0 | AQ43: 0 | AR43: 0 | AS43: 0 | AT43: 0 | AU43: 0 | AV43: 0 | AW43: 0 | AX43: 77612 | AY43: 93372 | AZ43: 0 | BA43: 0 | BB43: 0 | BC43: 0 | BD43: 0 | BE43: 0 | BF43: 9472 | BG43: 0 | BH43: 9440 | BI43: 0 | BJ43: 0 | BK43: 0 | BL43: 1100 | BM43: 1100 | BN43: 0 | BO43: 0 | BP43: 17500 | BQ43: 0 | BR43: 0 | BS43: =SUM(BS6:BS42) -> 0 | BT43: 0 | BU43: 0 | BV43: 212155.8 | BW43: 195973.74 | BX43: 208420.99 | BY43: 0 | BZ43: 33079.74 | CA43: 0 | CB43: 0 | CC43: 0 | CD43: 0 | CE43: 0 | CF43: 0 | CG43: 0 | CH43: 0 | CI43: 0 | CJ43: 0 | CK43: 0 | CL43: 0 | CM43: 0 | CN43: 0 | CO43: 0 | CP43: 0 | CQ43: 0 | CR43: 0 | CS43: 0 | CT43: 0 | CU43: 0 | CV43: 0 | CW43: 0 | CX43: 0 | CY43: 0 | CZ43: 0 | DA43: 0 | DB43: 0 | DC43: 0 | DD43: 0 | DE43: 0 | DF43: 0 | DG43: 0 | DH43: 0 | DI43: 0 | DJ43: 0 | DK43: 0 | DL43: 0 | DM43: 0 | DN43: 0 | DO43: 0 | DP43: 0 | DQ43: 6963.07 | DR43: 0 | DS43: 0 | DT43: 0 | DU43: 0 | DV43: 0 | DW43: 0 | DX43: 0 | DY43: 0 | DZ43: 0 | EA43: 0 | EB43: 0 | EC43: 123825.24 | ED43: 0 | EE43: =SUM(EE6:EE42) -> 31850 | EF43: 0 | EG43: 59465 | EH43: 0 | EI43: 0 | EJ43: 0 | EK43: 0 | EL43: 0 | EM43: 0 | EN43: 0 | EO43: 0 | EP43: 0 | EQ43: 0 | ER43: 0 | ES43: 0 | ET43: 61365 | EU43: 800 | EV43: 0 | EW43: 0 | EX43: 0 | EY43: 0 | EZ43: 0 | FA43: 0 | FB43: 0 | FC43: 0 | FD43: 0 | FE43: 0 | FF43: 9350 | FG43: 0 | FH43: 0 | FI43: 0 | FJ43: 4082.48 | FK43: 0 | FL43: 57226.07 | FM43: 0 | FN43: 12580 | FO43: 0 | FP43: 0 | FQ43: 0 | FR43: 0 | FS43: 0 | FT43: 0 | FU43: 0 | FV43: 0 | FW43: 0 | FX43: 0 | FY43: 0 | FZ43: 5920 | GA43: 0 | GB43: 8245 | GC43: 0 | GD43: 0 | GE43: 0 | GF43: 0 | GG43: 0 | GH43: 0 | GI43: 0 | GJ43: 0 | GK43: 0 | GL43: 0 | GM43: 0 | GN43: 0 | GO43: 0 | GP43: 0 | GQ43: =SUM(GQ6:GQ42) -> 0 | GR43: 0 | GS43: 0 | GT43: 0 | GU43: 0 | GV43: 0 | GW43: 0 | GX43: 0 | GY43: 0 | GZ43: 0 | HA43: 0 | HB43: 0 | HC43: 0 | HD43: 0 | HE43: 0 | HF43: 0 | HG43: 0 | HH43: 0 | HI43: 0 | HJ43: 0 | HK43: 0 | HL43: 0 | HM43: 0 | HN43: 0 | HO43: 0 | HP43: 0 | HQ43: 0 | HR43: 0 | HS43: 0 | HT43: 0 | HU43: 0 | HV43: 0 | HW43: 0 | HX43: 0 | HY43: 0 | HZ43: 0 | IA43: 0 | IB43: 212 | IC43: 0 | ID43: 0 | IE43: 0 | IF43: 5000 | IG43: 0 | IH43: 442.25 | II43: 0 | IJ43: 1000 | IK43: 0 | IL43: 2450 | IM43: 0 | IN43: 25 | IO43: 0 | IP43: 0 | IQ43: 0 | IR43: 0 | IS43: 0 | IT43: 4343 | IU43: 0 | IV43: 450 | IW43: 0 | IX43: 1442.5 | IY43: 0 | IZ43: 358.52 | JA43: 0 | JB43: 0 | JC43: =SUM(JC6:JC42) -> 0 | JD43: 0 | JE43: 0 | JF43: 1204.5 | JG43: 0 | JH43: 0 | JI43: 0 | JJ43: 2000 | JK43: 0 | JL43: 0 | JM43: 0 | JN43: 2500 | JO43: 0 | JP43: 0 | JQ43: 0 | JR43: 0 | JS43: 168245.8 | JT43: 0 | JU43: 0 | JV43: 0 | JW43: 0 | JX43: 0 | JY43: 59247.75 | JZ43: 0 | KA43: 13901.75 | KB43: 0 | KC43: 0 | KD43: 0 | KE43: 0 | KF43: 0 | KG43: 0 | KH43: 0 | KI43: 0 | KJ43: 0 | KK43: 0 | KL43: 0 | KM43: 4462.5 | KN43: 0 | KO43: 0 | KP43: 0 | KQ43: 0 | KR43: 0 | KS43: 0 | KT43: 0 | KU43: 0 | KV43: 0 | KW43: 0 | KX43: 0 | KY43: 0 | KZ43: 0 | LA43: 0 | LB43: 0 | LC43: 0 | LD43: 0 | LE43: 0 | LF43: 0 | LG43: 0 | LH43: 0 | LI43: 0 | LJ43: 0 | LK43: 0 | LL43: 0 | LM43: 0 | LN43: 0 | LO43: =SUM(LO6:LO42) -> 0 | LP43: 0 | LQ43: 0 | LR43: 0 | LS43: 0 | LT43: 0 | LU43: 0 | LV43: 0 | LW43: 0 | LX43: 0 | LY43: 0 | LZ43: 0 | MA43: 0 | MB43: 0 | MC43: 0 | MD43: 0 | ME43: 0 | MF43: 0 | MG43: 0
